{"text_format":"3","workbook":"xlsx","n_sheets":2,"sheets":["Postępy w odchudzaniu","obliczenia"],"not_rendered":{"charts":1,"defined_names":7},"read":"whole","date_system":"1900"}

{"sheet":"Postępy w odchudzaniu","index":0,"n_rows":129,"n_cols":11,"rows_kept":129,"merged":[[0,5,0,9],[1,3,3,9]]}
[null,"WAGA DOCELOWA","WIDOK WYKRESU",null,null,"ŚLEDZENIE POSTĘPÓW"]
[{"$nulls":3},"W ODCHUDZANIU"]
[null,{"v":172,"d":"172.0"},"TYGODNIOWY",{"$nulls":7}," "]
[]
[]
[{"$nulls":10}," "]
{"$rows_empty":18}
[null,"DATA","WAGA"]
[null,"2012-11-30",{"v":176,"d":"176.0"}]
[null,"2012-12-07",{"v":176,"d":"176.0"}]
[null,"2012-12-14",177.6]
[null,"2012-12-21",176.5]
[null,"2012-12-28",176.1]
[null,"2013-01-04",{"v":174,"d":"174.0"}]
[null,"2013-01-11",{"v":173,"d":"173.0"}]
[null,"2013-01-18",{"v":172,"d":"172.0"}]
[null,"2013-01-25",{"v":172,"d":"172.0"}]
[null,"2013-02-01",{"v":173,"d":"173.0"}]
[null,"2013-02-08",{"v":174,"d":"174.0"}]
[null,"2013-02-15",{"v":175,"d":"175.0"}]
[null,"2013-02-22"]
[null,"2013-03-01"]
[null,"2013-03-08"]
[null,"2013-03-15"]
[null,"2013-03-22"]
[null,"2013-03-29"]
[null,"2013-04-05"]
[null,"2013-04-12"]
[null,"2013-04-19"]
[null,"2013-04-26"]
[null,"2013-05-03"]
[null,"2013-05-10"]
[null,"2013-05-17"]
[null,"2013-05-24"]
[null,"2013-05-31"]
[null,"2013-06-07"]
[null,"2013-06-14"]
[null,"2013-06-21"]
[null,"2013-06-28"]
[null,"2013-07-05"]
[null,"2013-07-12"]
[null,"2013-07-19"]
[null,"2013-07-26"]
[null,"2013-08-02"]
[null,"2013-08-09"]
[null,"2013-08-16"]
[null,"2013-08-23"]
[null,"2013-08-30"]
[null,"2013-09-06"]
[null,"2013-09-13"]
[null,"2013-09-20"]
[null,"2013-09-27"]
[null,"2013-10-04"]
[null,"2013-10-11"]
[null,"2013-10-18"]
[null,"2013-10-25"]
[null,"2013-11-01"]
[null,"2013-11-08"]
[null,"2013-11-15"]
[null,"2013-11-22"]
[null,"2013-11-29"]
[null,"2013-12-06"]
[null,"2013-12-13"]
[null,"2013-12-20"]
[null,"2013-12-27"]
[null,"2014-01-03"]
[null,"2014-01-10"]
[null,"2014-01-17"]
[null,"2014-01-24"]
[null,"2014-01-31"]
[null,"2014-02-07"]
[null,"2014-02-14"]
[null,"2014-02-21"]
[null,"2014-02-28"]
[null,"2014-03-07"]
[null,"2014-03-14"]
[null,"2014-03-21"]
[null,"2014-03-28"]
[null,"2014-04-04"]
[null,"2014-04-11"]
[null,"2014-04-18"]
[null,"2014-04-25"]
[null,"2014-05-02"]
[null,"2014-05-09"]
[null,"2014-05-16"]
[null,"2014-05-23"]
[null,"2014-05-30"]
[null,"2014-06-06"]
[null,"2014-06-13"]
[null,"2014-06-20"]
[null,"2014-06-27"]
[null,"2014-07-04"]
[null,"2014-07-11"]
[null,"2014-07-18"]
[null,"2014-07-25"]
[null,"2014-08-01"]
[null,"2014-08-08"]
[null,"2014-08-15"]
[null,"2014-08-22"]
[null,"2014-08-29"]
[null,"2014-09-05"]
[null,"2014-09-12"]
[null,"2014-09-19"]
[null,"2014-09-26"]
[null,"2014-10-03"]
[null,"2014-10-10"]
[null,"2014-10-17"]
[null,"2014-10-24"]
[null,"2014-10-31"]
[null,"2014-11-07"]
[null,"2014-11-14"]
[null,"2014-11-21"]

{"sheet":"obliczenia","index":1,"n_rows":108,"n_cols":17,"rows_kept":108,"hidden":true}
["*** Arkusz, który ma pozostać ukryty ***"]
[]
[{"$f":"COUNTIF(A5:A108,FALSE)","v":13},"Okresy","Wartości",{"$nulls":3},{"$f":"COUNTIF(H5:H28,\">\"&0)","v":4},"Okresy",null,"Wartości"]
[null,"Tydzień",null,null,true,null,null,"Miesiąc","Koniec miesiąca"]
[{"$f":"IF(('Postępy w odchudzaniu'!C26=0)*('Postępy w odchudzaniu'!C25=0),TRUE)","v":false},{"$f":"IF(A5,0,IF('Postępy w odchudzaniu'!B26=0,'Postępy w odchudzaniu'!B25+5,'Postępy w odchudzaniu'!B26))","v":"2012-11-30"},{"$f":"'Postępy w odchudzaniu'!C26","v":176},{"$f":"MIN(Okresy_wykresu)","v":"2012-11-30"},{"$f":"IF($E$4,Waga_docelowa,NA())","v":172},null,null,{"$f":"DATE(YEAR(B5),MONTH(B5),1)","v":"2012-11-01"},{"$f":"EOMONTH(H5,0)","v":"2012-11-30"},{"$f":"IFERROR(AVERAGEIFS(Tabela_wartości_wagi[WAGA],Tabela_wartości_wagi[DATA],\">=\"&H5,Tabela_wartości_wagi[DATA],\"<=\"&I5),NA())","v":176}]
[{"$f":"IF(('Postępy w odchudzaniu'!C27=0)*('Postępy w odchudzaniu'!C26=0),TRUE)","v":false},{"$f":"IF(A6,0,IF('Postępy w odchudzaniu'!B27=0,'Postępy w odchudzaniu'!B26+5,'Postępy w odchudzaniu'!B27))","v":"2012-12-07"},{"$f":"'Postępy w odchudzaniu'!C27","v":176},{"$f":"MAX(Okresy_wykresu)","v":"2013-02-22"},172,null,null,{"$f":"IF(I5+1>MAX($B:$B),NA(),I5+1)","v":"2012-12-01"},"2012-12-31",{"$f":"IFERROR(AVERAGEIFS(Tabela_wartości_wagi[WAGA],Tabela_wartości_wagi[DATA],\">=\"&H6,Tabela_wartości_wagi[DATA],\"<=\"&I6),NA())","v":176.55}]
[{"$f":"IF(('Postępy w odchudzaniu'!C28=0)*('Postępy w odchudzaniu'!C27=0),TRUE)","v":false},{"$f":"IF(A7,0,IF('Postępy w odchudzaniu'!B28=0,'Postępy w odchudzaniu'!B27+5,'Postępy w odchudzaniu'!B28))","v":"2012-12-14"},{"$f":"'Postępy w odchudzaniu'!C28","v":177.6},{"$nulls":4},{"$f":"IF(I6+1>MAX($B:$B),NA(),I6+1)","v":"2013-01-01"},"2013-01-31",{"$f":"IFERROR(AVERAGEIFS(Tabela_wartości_wagi[WAGA],Tabela_wartości_wagi[DATA],\">=\"&H7,Tabela_wartości_wagi[DATA],\"<=\"&I7),NA())","v":172.75}]
[{"$f":"IF(('Postępy w odchudzaniu'!C29=0)*('Postępy w odchudzaniu'!C28=0),TRUE)","v":false},{"$f":"IF(A8,0,IF('Postępy w odchudzaniu'!B29=0,'Postępy w odchudzaniu'!B28+5,'Postępy w odchudzaniu'!B29))","v":"2012-12-21"},{"$f":"'Postępy w odchudzaniu'!C29","v":176.5},{"$nulls":4},"2013-02-01","2013-02-28",{"$f":"IFERROR(AVERAGEIFS(Tabela_wartości_wagi[WAGA],Tabela_wartości_wagi[DATA],\">=\"&H8,Tabela_wartości_wagi[DATA],\"<=\"&I8),NA())","v":174}]
[{"$f":"IF(('Postępy w odchudzaniu'!C30=0)*('Postępy w odchudzaniu'!C29=0),TRUE)","v":false},{"$f":"IF(A9,0,IF('Postępy w odchudzaniu'!B30=0,'Postępy w odchudzaniu'!B29+5,'Postępy w odchudzaniu'!B30))","v":"2012-12-28"},{"$f":"'Postępy w odchudzaniu'!C30","v":176.1},{"$nulls":4},{"$error":"#N/A"},{"$error":"#N/A"},{"$f":"IFERROR(AVERAGEIFS(Tabela_wartości_wagi[WAGA],Tabela_wartości_wagi[DATA],\">=\"&H9,Tabela_wartości_wagi[DATA],\"<=\"&I9),NA())","v":{"$error":"#N/A"}}]
[{"$f":"IF(('Postępy w odchudzaniu'!C31=0)*('Postępy w odchudzaniu'!C30=0),TRUE)","v":false},{"$f":"IF(A10,0,IF('Postępy w odchudzaniu'!B31=0,'Postępy w odchudzaniu'!B30+5,'Postępy w odchudzaniu'!B31))","v":"2013-01-04"},{"$f":"'Postępy w odchudzaniu'!C31","v":174},{"$nulls":4},{"$error":"#N/A"},{"$error":"#N/A"},{"$f":"IFERROR(AVERAGEIFS(Tabela_wartości_wagi[WAGA],Tabela_wartości_wagi[DATA],\">=\"&H10,Tabela_wartości_wagi[DATA],\"<=\"&I10),NA())","v":{"$error":"#N/A"}}]
[{"$f":"IF(('Postępy w odchudzaniu'!C32=0)*('Postępy w odchudzaniu'!C31=0),TRUE)","v":false},{"$f":"IF(A11,0,IF('Postępy w odchudzaniu'!B32=0,'Postępy w odchudzaniu'!B31+5,'Postępy w odchudzaniu'!B32))","v":"2013-01-11"},{"$f":"'Postępy w odchudzaniu'!C32","v":173},{"$nulls":4},{"$error":"#N/A"},{"$error":"#N/A"},{"$f":"IFERROR(AVERAGEIFS(Tabela_wartości_wagi[WAGA],Tabela_wartości_wagi[DATA],\">=\"&H11,Tabela_wartości_wagi[DATA],\"<=\"&I11),NA())","v":{"$error":"#N/A"}},{"$nulls":6},{"$f":"MAX($B:$B)","v":"2013-02-22"}]
[{"$f":"IF(('Postępy w odchudzaniu'!C33=0)*('Postępy w odchudzaniu'!C32=0),TRUE)","v":false},{"$f":"IF(A12,0,IF('Postępy w odchudzaniu'!B33=0,'Postępy w odchudzaniu'!B32+5,'Postępy w odchudzaniu'!B33))","v":"2013-01-18"},{"$f":"'Postępy w odchudzaniu'!C33","v":172},{"$nulls":4},{"$error":"#N/A"},{"$error":"#N/A"},{"$f":"IFERROR(AVERAGEIFS(Tabela_wartości_wagi[WAGA],Tabela_wartości_wagi[DATA],\">=\"&H12,Tabela_wartości_wagi[DATA],\"<=\"&I12),NA())","v":{"$error":"#N/A"}}]
[{"$f":"IF(('Postępy w odchudzaniu'!C34=0)*('Postępy w odchudzaniu'!C33=0),TRUE)","v":false},{"$f":"IF(A13,0,IF('Postępy w odchudzaniu'!B34=0,'Postępy w odchudzaniu'!B33+5,'Postępy w odchudzaniu'!B34))","v":"2013-01-25"},{"$f":"'Postępy w odchudzaniu'!C34","v":172},{"$nulls":4},{"$error":"#N/A"},{"$error":"#N/A"},{"$f":"IFERROR(AVERAGEIFS(Tabela_wartości_wagi[WAGA],Tabela_wartości_wagi[DATA],\">=\"&H13,Tabela_wartości_wagi[DATA],\"<=\"&I13),NA())","v":{"$error":"#N/A"}}]
[{"$f":"IF(('Postępy w odchudzaniu'!C35=0)*('Postępy w odchudzaniu'!C34=0),TRUE)","v":false},{"$f":"IF(A14,0,IF('Postępy w odchudzaniu'!B35=0,'Postępy w odchudzaniu'!B34+5,'Postępy w odchudzaniu'!B35))","v":"2013-02-01"},{"$f":"'Postępy w odchudzaniu'!C35","v":173},{"$nulls":4},{"$error":"#N/A"},{"$error":"#N/A"},{"$f":"IFERROR(AVERAGEIFS(Tabela_wartości_wagi[WAGA],Tabela_wartości_wagi[DATA],\">=\"&H14,Tabela_wartości_wagi[DATA],\"<=\"&I14),NA())","v":{"$error":"#N/A"}}]
[{"$f":"IF(('Postępy w odchudzaniu'!C36=0)*('Postępy w odchudzaniu'!C35=0),TRUE)","v":false},{"$f":"IF(A15,0,IF('Postępy w odchudzaniu'!B36=0,'Postępy w odchudzaniu'!B35+5,'Postępy w odchudzaniu'!B36))","v":"2013-02-08"},{"$f":"'Postępy w odchudzaniu'!C36","v":174},{"$nulls":4},{"$error":"#N/A"},{"$error":"#N/A"},{"$f":"IFERROR(AVERAGEIFS(Tabela_wartości_wagi[WAGA],Tabela_wartości_wagi[DATA],\">=\"&H15,Tabela_wartości_wagi[DATA],\"<=\"&I15),NA())","v":{"$error":"#N/A"}}]
[{"$f":"IF(('Postępy w odchudzaniu'!C37=0)*('Postępy w odchudzaniu'!C36=0),TRUE)","v":false},{"$f":"IF(A16,0,IF('Postępy w odchudzaniu'!B37=0,'Postępy w odchudzaniu'!B36+5,'Postępy w odchudzaniu'!B37))","v":"2013-02-15"},{"$f":"'Postępy w odchudzaniu'!C37","v":175},{"$nulls":4},{"$error":"#N/A"},{"$error":"#N/A"},{"$f":"IFERROR(AVERAGEIFS(Tabela_wartości_wagi[WAGA],Tabela_wartości_wagi[DATA],\">=\"&H16,Tabela_wartości_wagi[DATA],\"<=\"&I16),NA())","v":{"$error":"#N/A"}}]
[{"$f":"IF(('Postępy w odchudzaniu'!C38=0)*('Postępy w odchudzaniu'!C37=0),TRUE)","v":false},{"$f":"IF(A17,0,IF('Postępy w odchudzaniu'!B38=0,'Postępy w odchudzaniu'!B37+5,'Postępy w odchudzaniu'!B38))","v":"2013-02-22"},{"$f":"'Postępy w odchudzaniu'!C38","v":0},{"$nulls":4},{"$error":"#N/A"},{"$error":"#N/A"},{"$f":"IFERROR(AVERAGEIFS(Tabela_wartości_wagi[WAGA],Tabela_wartości_wagi[DATA],\">=\"&H17,Tabela_wartości_wagi[DATA],\"<=\"&I17),NA())","v":{"$error":"#N/A"}}]
[{"$f":"IF(('Postępy w odchudzaniu'!C39=0)*('Postępy w odchudzaniu'!C38=0),TRUE)","v":true},{"$f":"IF(A18,0,IF('Postępy w odchudzaniu'!B39=0,'Postępy w odchudzaniu'!B38+5,'Postępy w odchudzaniu'!B39))","v":"00:00:00"},{"$f":"'Postępy w odchudzaniu'!C39","v":0},{"$nulls":4},{"$error":"#N/A"},{"$error":"#N/A"},{"$f":"IFERROR(AVERAGEIFS(Tabela_wartości_wagi[WAGA],Tabela_wartości_wagi[DATA],\">=\"&H18,Tabela_wartości_wagi[DATA],\"<=\"&I18),NA())","v":{"$error":"#N/A"}}]
[{"$f":"IF(('Postępy w odchudzaniu'!C40=0)*('Postępy w odchudzaniu'!C39=0),TRUE)","v":true},{"$f":"IF(A19,0,IF('Postępy w odchudzaniu'!B40=0,'Postępy w odchudzaniu'!B39+5,'Postępy w odchudzaniu'!B40))","v":"00:00:00"},{"$f":"'Postępy w odchudzaniu'!C40","v":0},{"$nulls":4},{"$error":"#N/A"},{"$error":"#N/A"},{"$f":"IFERROR(AVERAGEIFS(Tabela_wartości_wagi[WAGA],Tabela_wartości_wagi[DATA],\">=\"&H19,Tabela_wartości_wagi[DATA],\"<=\"&I19),NA())","v":{"$error":"#N/A"}}]
[{"$f":"IF(('Postępy w odchudzaniu'!C41=0)*('Postępy w odchudzaniu'!C40=0),TRUE)","v":true},{"$f":"IF(A20,0,IF('Postępy w odchudzaniu'!B41=0,'Postępy w odchudzaniu'!B40+5,'Postępy w odchudzaniu'!B41))","v":"00:00:00"},{"$f":"'Postępy w odchudzaniu'!C41","v":0},{"$nulls":4},{"$error":"#N/A"},{"$error":"#N/A"},{"$f":"IFERROR(AVERAGEIFS(Tabela_wartości_wagi[WAGA],Tabela_wartości_wagi[DATA],\">=\"&H20,Tabela_wartości_wagi[DATA],\"<=\"&I20),NA())","v":{"$error":"#N/A"}}]
[{"$f":"IF(('Postępy w odchudzaniu'!C42=0)*('Postępy w odchudzaniu'!C41=0),TRUE)","v":true},{"$f":"IF(A21,0,IF('Postępy w odchudzaniu'!B42=0,'Postępy w odchudzaniu'!B41+5,'Postępy w odchudzaniu'!B42))","v":"00:00:00"},{"$f":"'Postępy w odchudzaniu'!C42","v":0},{"$nulls":4},{"$error":"#N/A"},{"$error":"#N/A"},{"$f":"IFERROR(AVERAGEIFS(Tabela_wartości_wagi[WAGA],Tabela_wartości_wagi[DATA],\">=\"&H21,Tabela_wartości_wagi[DATA],\"<=\"&I21),NA())","v":{"$error":"#N/A"}}]
[{"$f":"IF(('Postępy w odchudzaniu'!C43=0)*('Postępy w odchudzaniu'!C42=0),TRUE)","v":true},{"$f":"IF(A22,0,IF('Postępy w odchudzaniu'!B43=0,'Postępy w odchudzaniu'!B42+5,'Postępy w odchudzaniu'!B43))","v":"00:00:00"},{"$f":"'Postępy w odchudzaniu'!C43","v":0},{"$nulls":4},{"$error":"#N/A"},{"$error":"#N/A"},{"$f":"IFERROR(AVERAGEIFS(Tabela_wartości_wagi[WAGA],Tabela_wartości_wagi[DATA],\">=\"&H22,Tabela_wartości_wagi[DATA],\"<=\"&I22),NA())","v":{"$error":"#N/A"}}]
[{"$f":"IF(('Postępy w odchudzaniu'!C44=0)*('Postępy w odchudzaniu'!C43=0),TRUE)","v":true},{"$f":"IF(A23,0,IF('Postępy w odchudzaniu'!B44=0,'Postępy w odchudzaniu'!B43+5,'Postępy w odchudzaniu'!B44))","v":"00:00:00"},{"$f":"'Postępy w odchudzaniu'!C44","v":0},{"$nulls":4},{"$error":"#N/A"},{"$error":"#N/A"},{"$f":"IFERROR(AVERAGEIFS(Tabela_wartości_wagi[WAGA],Tabela_wartości_wagi[DATA],\">=\"&H23,Tabela_wartości_wagi[DATA],\"<=\"&I23),NA())","v":{"$error":"#N/A"}}]
[{"$f":"IF(('Postępy w odchudzaniu'!C45=0)*('Postępy w odchudzaniu'!C44=0),TRUE)","v":true},{"$f":"IF(A24,0,IF('Postępy w odchudzaniu'!B45=0,'Postępy w odchudzaniu'!B44+5,'Postępy w odchudzaniu'!B45))","v":"00:00:00"},{"$f":"'Postępy w odchudzaniu'!C45","v":0},{"$nulls":4},{"$error":"#N/A"},{"$error":"#N/A"},{"$f":"IFERROR(AVERAGEIFS(Tabela_wartości_wagi[WAGA],Tabela_wartości_wagi[DATA],\">=\"&H24,Tabela_wartości_wagi[DATA],\"<=\"&I24),NA())","v":{"$error":"#N/A"}}]
[{"$f":"IF(('Postępy w odchudzaniu'!C46=0)*('Postępy w odchudzaniu'!C45=0),TRUE)","v":true},{"$f":"IF(A25,0,IF('Postępy w odchudzaniu'!B46=0,'Postępy w odchudzaniu'!B45+5,'Postępy w odchudzaniu'!B46))","v":"00:00:00"},{"$f":"'Postępy w odchudzaniu'!C46","v":0},{"$nulls":4},{"$error":"#N/A"},{"$error":"#N/A"},{"$f":"IFERROR(AVERAGEIFS(Tabela_wartości_wagi[WAGA],Tabela_wartości_wagi[DATA],\">=\"&H25,Tabela_wartości_wagi[DATA],\"<=\"&I25),NA())","v":{"$error":"#N/A"}}]
[{"$f":"IF(('Postępy w odchudzaniu'!C47=0)*('Postępy w odchudzaniu'!C46=0),TRUE)","v":true},{"$f":"IF(A26,0,IF('Postępy w odchudzaniu'!B47=0,'Postępy w odchudzaniu'!B46+5,'Postępy w odchudzaniu'!B47))","v":"00:00:00"},{"$f":"'Postępy w odchudzaniu'!C47","v":0},{"$nulls":4},{"$error":"#N/A"},{"$error":"#N/A"},{"$f":"IFERROR(AVERAGEIFS(Tabela_wartości_wagi[WAGA],Tabela_wartości_wagi[DATA],\">=\"&H26,Tabela_wartości_wagi[DATA],\"<=\"&I26),NA())","v":{"$error":"#N/A"}}]
[{"$f":"IF(('Postępy w odchudzaniu'!C48=0)*('Postępy w odchudzaniu'!C47=0),TRUE)","v":true},{"$f":"IF(A27,0,IF('Postępy w odchudzaniu'!B48=0,'Postępy w odchudzaniu'!B47+5,'Postępy w odchudzaniu'!B48))","v":"00:00:00"},{"$f":"'Postępy w odchudzaniu'!C48","v":0},{"$nulls":4},{"$error":"#N/A"},{"$error":"#N/A"},{"$f":"IFERROR(AVERAGEIFS(Tabela_wartości_wagi[WAGA],Tabela_wartości_wagi[DATA],\">=\"&H27,Tabela_wartości_wagi[DATA],\"<=\"&I27),NA())","v":{"$error":"#N/A"}}]
[{"$f":"IF(('Postępy w odchudzaniu'!C49=0)*('Postępy w odchudzaniu'!C48=0),TRUE)","v":true},{"$f":"IF(A28,0,IF('Postępy w odchudzaniu'!B49=0,'Postępy w odchudzaniu'!B48+5,'Postępy w odchudzaniu'!B49))","v":"00:00:00"},{"$f":"'Postępy w odchudzaniu'!C49","v":0},{"$nulls":4},{"$error":"#N/A"},{"$error":"#N/A"},{"$f":"IFERROR(AVERAGEIFS(Tabela_wartości_wagi[WAGA],Tabela_wartości_wagi[DATA],\">=\"&H28,Tabela_wartości_wagi[DATA],\"<=\"&I28),NA())","v":{"$error":"#N/A"}}]
[{"$f":"IF(('Postępy w odchudzaniu'!C50=0)*('Postępy w odchudzaniu'!C49=0),TRUE)","v":true},{"$f":"IF(A29,0,IF('Postępy w odchudzaniu'!B50=0,'Postępy w odchudzaniu'!B49+5,'Postępy w odchudzaniu'!B50))","v":"00:00:00"},{"$f":"'Postępy w odchudzaniu'!C50","v":0}]
[{"$f":"IF(('Postępy w odchudzaniu'!C51=0)*('Postępy w odchudzaniu'!C50=0),TRUE)","v":true},{"$f":"IF(A30,0,IF('Postępy w odchudzaniu'!B51=0,'Postępy w odchudzaniu'!B50+5,'Postępy w odchudzaniu'!B51))","v":"00:00:00"},{"$f":"'Postępy w odchudzaniu'!C51","v":0}]
[{"$f":"IF(('Postępy w odchudzaniu'!C52=0)*('Postępy w odchudzaniu'!C51=0),TRUE)","v":true},{"$f":"IF(A31,0,IF('Postępy w odchudzaniu'!B52=0,'Postępy w odchudzaniu'!B51+5,'Postępy w odchudzaniu'!B52))","v":"00:00:00"},{"$f":"'Postępy w odchudzaniu'!C52","v":0}]
[{"$f":"IF(('Postępy w odchudzaniu'!C53=0)*('Postępy w odchudzaniu'!C52=0),TRUE)","v":true},{"$f":"IF(A32,0,IF('Postępy w odchudzaniu'!B53=0,'Postępy w odchudzaniu'!B52+5,'Postępy w odchudzaniu'!B53))","v":"00:00:00"},{"$f":"'Postępy w odchudzaniu'!C53","v":0}]
[{"$f":"IF(('Postępy w odchudzaniu'!C54=0)*('Postępy w odchudzaniu'!C53=0),TRUE)","v":true},{"$f":"IF(A33,0,IF('Postępy w odchudzaniu'!B54=0,'Postępy w odchudzaniu'!B53+5,'Postępy w odchudzaniu'!B54))","v":"00:00:00"},{"$f":"'Postępy w odchudzaniu'!C54","v":0}]
[{"$f":"IF(('Postępy w odchudzaniu'!C55=0)*('Postępy w odchudzaniu'!C54=0),TRUE)","v":true},{"$f":"IF(A34,0,IF('Postępy w odchudzaniu'!B55=0,'Postępy w odchudzaniu'!B54+5,'Postępy w odchudzaniu'!B55))","v":"00:00:00"},{"$f":"'Postępy w odchudzaniu'!C55","v":0}]
[{"$f":"IF(('Postępy w odchudzaniu'!C56=0)*('Postępy w odchudzaniu'!C55=0),TRUE)","v":true},{"$f":"IF(A35,0,IF('Postępy w odchudzaniu'!B56=0,'Postępy w odchudzaniu'!B55+5,'Postępy w odchudzaniu'!B56))","v":"00:00:00"},{"$f":"'Postępy w odchudzaniu'!C56","v":0}]
[{"$f":"IF(('Postępy w odchudzaniu'!C57=0)*('Postępy w odchudzaniu'!C56=0),TRUE)","v":true},{"$f":"IF(A36,0,IF('Postępy w odchudzaniu'!B57=0,'Postępy w odchudzaniu'!B56+5,'Postępy w odchudzaniu'!B57))","v":"00:00:00"},{"$f":"'Postępy w odchudzaniu'!C57","v":0}]
[{"$f":"IF(('Postępy w odchudzaniu'!C58=0)*('Postępy w odchudzaniu'!C57=0),TRUE)","v":true},{"$f":"IF(A37,0,IF('Postępy w odchudzaniu'!B58=0,'Postępy w odchudzaniu'!B57+5,'Postępy w odchudzaniu'!B58))","v":"00:00:00"},{"$f":"'Postępy w odchudzaniu'!C58","v":0}]
[{"$f":"IF(('Postępy w odchudzaniu'!C59=0)*('Postępy w odchudzaniu'!C58=0),TRUE)","v":true},{"$f":"IF(A38,0,IF('Postępy w odchudzaniu'!B59=0,'Postępy w odchudzaniu'!B58+5,'Postępy w odchudzaniu'!B59))","v":"00:00:00"},{"$f":"'Postępy w odchudzaniu'!C59","v":0}]
[{"$f":"IF(('Postępy w odchudzaniu'!C60=0)*('Postępy w odchudzaniu'!C59=0),TRUE)","v":true},{"$f":"IF(A39,0,IF('Postępy w odchudzaniu'!B60=0,'Postępy w odchudzaniu'!B59+5,'Postępy w odchudzaniu'!B60))","v":"00:00:00"},{"$f":"'Postępy w odchudzaniu'!C60","v":0}]
[{"$f":"IF(('Postępy w odchudzaniu'!C61=0)*('Postępy w odchudzaniu'!C60=0),TRUE)","v":true},{"$f":"IF(A40,0,IF('Postępy w odchudzaniu'!B61=0,'Postępy w odchudzaniu'!B60+5,'Postępy w odchudzaniu'!B61))","v":"00:00:00"},{"$f":"'Postępy w odchudzaniu'!C61","v":0}]
[{"$f":"IF(('Postępy w odchudzaniu'!C62=0)*('Postępy w odchudzaniu'!C61=0),TRUE)","v":true},{"$f":"IF(A41,0,IF('Postępy w odchudzaniu'!B62=0,'Postępy w odchudzaniu'!B61+5,'Postępy w odchudzaniu'!B62))","v":"00:00:00"},{"$f":"'Postępy w odchudzaniu'!C62","v":0}]
[{"$f":"IF(('Postępy w odchudzaniu'!C63=0)*('Postępy w odchudzaniu'!C62=0),TRUE)","v":true},{"$f":"IF(A42,0,IF('Postępy w odchudzaniu'!B63=0,'Postępy w odchudzaniu'!B62+5,'Postępy w odchudzaniu'!B63))","v":"00:00:00"},{"$f":"'Postępy w odchudzaniu'!C63","v":0}]
[{"$f":"IF(('Postępy w odchudzaniu'!C64=0)*('Postępy w odchudzaniu'!C63=0),TRUE)","v":true},{"$f":"IF(A43,0,IF('Postępy w odchudzaniu'!B64=0,'Postępy w odchudzaniu'!B63+5,'Postępy w odchudzaniu'!B64))","v":"00:00:00"},{"$f":"'Postępy w odchudzaniu'!C64","v":0}]
[{"$f":"IF(('Postępy w odchudzaniu'!C65=0)*('Postępy w odchudzaniu'!C64=0),TRUE)","v":true},{"$f":"IF(A44,0,IF('Postępy w odchudzaniu'!B65=0,'Postępy w odchudzaniu'!B64+5,'Postępy w odchudzaniu'!B65))","v":"00:00:00"},{"$f":"'Postępy w odchudzaniu'!C65","v":0}]
[{"$f":"IF(('Postępy w odchudzaniu'!C66=0)*('Postępy w odchudzaniu'!C65=0),TRUE)","v":true},{"$f":"IF(A45,0,IF('Postępy w odchudzaniu'!B66=0,'Postępy w odchudzaniu'!B65+5,'Postępy w odchudzaniu'!B66))","v":"00:00:00"},{"$f":"'Postępy w odchudzaniu'!C66","v":0}]
[{"$f":"IF(('Postępy w odchudzaniu'!C67=0)*('Postępy w odchudzaniu'!C66=0),TRUE)","v":true},{"$f":"IF(A46,0,IF('Postępy w odchudzaniu'!B67=0,'Postępy w odchudzaniu'!B66+5,'Postępy w odchudzaniu'!B67))","v":"00:00:00"},{"$f":"'Postępy w odchudzaniu'!C67","v":0}]
[{"$f":"IF(('Postępy w odchudzaniu'!C68=0)*('Postępy w odchudzaniu'!C67=0),TRUE)","v":true},{"$f":"IF(A47,0,IF('Postępy w odchudzaniu'!B68=0,'Postępy w odchudzaniu'!B67+5,'Postępy w odchudzaniu'!B68))","v":"00:00:00"},{"$f":"'Postępy w odchudzaniu'!C68","v":0}]
[{"$f":"IF(('Postępy w odchudzaniu'!C69=0)*('Postępy w odchudzaniu'!C68=0),TRUE)","v":true},{"$f":"IF(A48,0,IF('Postępy w odchudzaniu'!B69=0,'Postępy w odchudzaniu'!B68+5,'Postępy w odchudzaniu'!B69))","v":"00:00:00"},{"$f":"'Postępy w odchudzaniu'!C69","v":0}]
[{"$f":"IF(('Postępy w odchudzaniu'!C70=0)*('Postępy w odchudzaniu'!C69=0),TRUE)","v":true},{"$f":"IF(A49,0,IF('Postępy w odchudzaniu'!B70=0,'Postępy w odchudzaniu'!B69+5,'Postępy w odchudzaniu'!B70))","v":"00:00:00"},{"$f":"'Postępy w odchudzaniu'!C70","v":0}]
[{"$f":"IF(('Postępy w odchudzaniu'!C71=0)*('Postępy w odchudzaniu'!C70=0),TRUE)","v":true},{"$f":"IF(A50,0,IF('Postępy w odchudzaniu'!B71=0,'Postępy w odchudzaniu'!B70+5,'Postępy w odchudzaniu'!B71))","v":"00:00:00"},{"$f":"'Postępy w odchudzaniu'!C71","v":0}]
[{"$f":"IF(('Postępy w odchudzaniu'!C72=0)*('Postępy w odchudzaniu'!C71=0),TRUE)","v":true},{"$f":"IF(A51,0,IF('Postępy w odchudzaniu'!B72=0,'Postępy w odchudzaniu'!B71+5,'Postępy w odchudzaniu'!B72))","v":"00:00:00"},{"$f":"'Postępy w odchudzaniu'!C72","v":0}]
[{"$f":"IF(('Postępy w odchudzaniu'!C73=0)*('Postępy w odchudzaniu'!C72=0),TRUE)","v":true},{"$f":"IF(A52,0,IF('Postępy w odchudzaniu'!B73=0,'Postępy w odchudzaniu'!B72+5,'Postępy w odchudzaniu'!B73))","v":"00:00:00"},{"$f":"'Postępy w odchudzaniu'!C73","v":0}]
[{"$f":"IF(('Postępy w odchudzaniu'!C74=0)*('Postępy w odchudzaniu'!C73=0),TRUE)","v":true},{"$f":"IF(A53,0,IF('Postępy w odchudzaniu'!B74=0,'Postępy w odchudzaniu'!B73+5,'Postępy w odchudzaniu'!B74))","v":"00:00:00"},{"$f":"'Postępy w odchudzaniu'!C74","v":0}]
[{"$f":"IF(('Postępy w odchudzaniu'!C75=0)*('Postępy w odchudzaniu'!C74=0),TRUE)","v":true},{"$f":"IF(A54,0,IF('Postępy w odchudzaniu'!B75=0,'Postępy w odchudzaniu'!B74+5,'Postępy w odchudzaniu'!B75))","v":"00:00:00"},{"$f":"'Postępy w odchudzaniu'!C75","v":0}]
[{"$f":"IF(('Postępy w odchudzaniu'!C76=0)*('Postępy w odchudzaniu'!C75=0),TRUE)","v":true},{"$f":"IF(A55,0,IF('Postępy w odchudzaniu'!B76=0,'Postępy w odchudzaniu'!B75+5,'Postępy w odchudzaniu'!B76))","v":"00:00:00"},{"$f":"'Postępy w odchudzaniu'!C76","v":0}]
[{"$f":"IF(('Postępy w odchudzaniu'!C77=0)*('Postępy w odchudzaniu'!C76=0),TRUE)","v":true},{"$f":"IF(A56,0,IF('Postępy w odchudzaniu'!B77=0,'Postępy w odchudzaniu'!B76+5,'Postępy w odchudzaniu'!B77))","v":"00:00:00"},{"$f":"'Postępy w odchudzaniu'!C77","v":0}]
[{"$f":"IF(('Postępy w odchudzaniu'!C78=0)*('Postępy w odchudzaniu'!C77=0),TRUE)","v":true},{"$f":"IF(A57,0,IF('Postępy w odchudzaniu'!B78=0,'Postępy w odchudzaniu'!B77+5,'Postępy w odchudzaniu'!B78))","v":"00:00:00"},{"$f":"'Postępy w odchudzaniu'!C78","v":0}]
[{"$f":"IF(('Postępy w odchudzaniu'!C79=0)*('Postępy w odchudzaniu'!C78=0),TRUE)","v":true},{"$f":"IF(A58,0,IF('Postępy w odchudzaniu'!B79=0,'Postępy w odchudzaniu'!B78+5,'Postępy w odchudzaniu'!B79))","v":"00:00:00"},{"$f":"'Postępy w odchudzaniu'!C79","v":0}]
[{"$f":"IF(('Postępy w odchudzaniu'!C80=0)*('Postępy w odchudzaniu'!C79=0),TRUE)","v":true},{"$f":"IF(A59,0,IF('Postępy w odchudzaniu'!B80=0,'Postępy w odchudzaniu'!B79+5,'Postępy w odchudzaniu'!B80))","v":"00:00:00"},{"$f":"'Postępy w odchudzaniu'!C80","v":0}]
[{"$f":"IF(('Postępy w odchudzaniu'!C81=0)*('Postępy w odchudzaniu'!C80=0),TRUE)","v":true},{"$f":"IF(A60,0,IF('Postępy w odchudzaniu'!B81=0,'Postępy w odchudzaniu'!B80+5,'Postępy w odchudzaniu'!B81))","v":"00:00:00"},{"$f":"'Postępy w odchudzaniu'!C81","v":0}]
[{"$f":"IF(('Postępy w odchudzaniu'!C82=0)*('Postępy w odchudzaniu'!C81=0),TRUE)","v":true},{"$f":"IF(A61,0,IF('Postępy w odchudzaniu'!B82=0,'Postępy w odchudzaniu'!B81+5,'Postępy w odchudzaniu'!B82))","v":"00:00:00"},{"$f":"'Postępy w odchudzaniu'!C82","v":0}]
[{"$f":"IF(('Postępy w odchudzaniu'!C83=0)*('Postępy w odchudzaniu'!C82=0),TRUE)","v":true},{"$f":"IF(A62,0,IF('Postępy w odchudzaniu'!B83=0,'Postępy w odchudzaniu'!B82+5,'Postępy w odchudzaniu'!B83))","v":"00:00:00"},{"$f":"'Postępy w odchudzaniu'!C83","v":0}]
[{"$f":"IF(('Postępy w odchudzaniu'!C84=0)*('Postępy w odchudzaniu'!C83=0),TRUE)","v":true},{"$f":"IF(A63,0,IF('Postępy w odchudzaniu'!B84=0,'Postępy w odchudzaniu'!B83+5,'Postępy w odchudzaniu'!B84))","v":"00:00:00"},{"$f":"'Postępy w odchudzaniu'!C84","v":0}]
[{"$f":"IF(('Postępy w odchudzaniu'!C85=0)*('Postępy w odchudzaniu'!C84=0),TRUE)","v":true},{"$f":"IF(A64,0,IF('Postępy w odchudzaniu'!B85=0,'Postępy w odchudzaniu'!B84+5,'Postępy w odchudzaniu'!B85))","v":"00:00:00"},{"$f":"'Postępy w odchudzaniu'!C85","v":0}]
[{"$f":"IF(('Postępy w odchudzaniu'!C86=0)*('Postępy w odchudzaniu'!C85=0),TRUE)","v":true},{"$f":"IF(A65,0,IF('Postępy w odchudzaniu'!B86=0,'Postępy w odchudzaniu'!B85+5,'Postępy w odchudzaniu'!B86))","v":"00:00:00"},{"$f":"'Postępy w odchudzaniu'!C86","v":0}]
[{"$f":"IF(('Postępy w odchudzaniu'!C87=0)*('Postępy w odchudzaniu'!C86=0),TRUE)","v":true},{"$f":"IF(A66,0,IF('Postępy w odchudzaniu'!B87=0,'Postępy w odchudzaniu'!B86+5,'Postępy w odchudzaniu'!B87))","v":"00:00:00"},{"$f":"'Postępy w odchudzaniu'!C87","v":0}]
[{"$f":"IF(('Postępy w odchudzaniu'!C88=0)*('Postępy w odchudzaniu'!C87=0),TRUE)","v":true},{"$f":"IF(A67,0,IF('Postępy w odchudzaniu'!B88=0,'Postępy w odchudzaniu'!B87+5,'Postępy w odchudzaniu'!B88))","v":"00:00:00"},{"$f":"'Postępy w odchudzaniu'!C88","v":0}]
[{"$f":"IF(('Postępy w odchudzaniu'!C89=0)*('Postępy w odchudzaniu'!C88=0),TRUE)","v":true},{"$f":"IF(A68,0,IF('Postępy w odchudzaniu'!B89=0,'Postępy w odchudzaniu'!B88+5,'Postępy w odchudzaniu'!B89))","v":"00:00:00"},{"$f":"'Postępy w odchudzaniu'!C89","v":0}]
[{"$f":"IF(('Postępy w odchudzaniu'!C90=0)*('Postępy w odchudzaniu'!C89=0),TRUE)","v":true},{"$f":"IF(A69,0,IF('Postępy w odchudzaniu'!B90=0,'Postępy w odchudzaniu'!B89+5,'Postępy w odchudzaniu'!B90))","v":"00:00:00"},{"$f":"'Postępy w odchudzaniu'!C90","v":0}]
[{"$f":"IF(('Postępy w odchudzaniu'!C91=0)*('Postępy w odchudzaniu'!C90=0),TRUE)","v":true},{"$f":"IF(A70,0,IF('Postępy w odchudzaniu'!B91=0,'Postępy w odchudzaniu'!B90+5,'Postępy w odchudzaniu'!B91))","v":"00:00:00"},{"$f":"'Postępy w odchudzaniu'!C91","v":0}]
[{"$f":"IF(('Postępy w odchudzaniu'!C92=0)*('Postępy w odchudzaniu'!C91=0),TRUE)","v":true},{"$f":"IF(A71,0,IF('Postępy w odchudzaniu'!B92=0,'Postępy w odchudzaniu'!B91+5,'Postępy w odchudzaniu'!B92))","v":"00:00:00"},{"$f":"'Postępy w odchudzaniu'!C92","v":0}]
[{"$f":"IF(('Postępy w odchudzaniu'!C93=0)*('Postępy w odchudzaniu'!C92=0),TRUE)","v":true},{"$f":"IF(A72,0,IF('Postępy w odchudzaniu'!B93=0,'Postępy w odchudzaniu'!B92+5,'Postępy w odchudzaniu'!B93))","v":"00:00:00"},{"$f":"'Postępy w odchudzaniu'!C93","v":0}]
[{"$f":"IF(('Postępy w odchudzaniu'!C94=0)*('Postępy w odchudzaniu'!C93=0),TRUE)","v":true},{"$f":"IF(A73,0,IF('Postępy w odchudzaniu'!B94=0,'Postępy w odchudzaniu'!B93+5,'Postępy w odchudzaniu'!B94))","v":"00:00:00"},{"$f":"'Postępy w odchudzaniu'!C94","v":0}]
[{"$f":"IF(('Postępy w odchudzaniu'!C95=0)*('Postępy w odchudzaniu'!C94=0),TRUE)","v":true},{"$f":"IF(A74,0,IF('Postępy w odchudzaniu'!B95=0,'Postępy w odchudzaniu'!B94+5,'Postępy w odchudzaniu'!B95))","v":"00:00:00"},{"$f":"'Postępy w odchudzaniu'!C95","v":0}]
[{"$f":"IF(('Postępy w odchudzaniu'!C96=0)*('Postępy w odchudzaniu'!C95=0),TRUE)","v":true},{"$f":"IF(A75,0,IF('Postępy w odchudzaniu'!B96=0,'Postępy w odchudzaniu'!B95+5,'Postępy w odchudzaniu'!B96))","v":"00:00:00"},{"$f":"'Postępy w odchudzaniu'!C96","v":0}]
[{"$f":"IF(('Postępy w odchudzaniu'!C97=0)*('Postępy w odchudzaniu'!C96=0),TRUE)","v":true},{"$f":"IF(A76,0,IF('Postępy w odchudzaniu'!B97=0,'Postępy w odchudzaniu'!B96+5,'Postępy w odchudzaniu'!B97))","v":"00:00:00"},{"$f":"'Postępy w odchudzaniu'!C97","v":0}]
[{"$f":"IF(('Postępy w odchudzaniu'!C98=0)*('Postępy w odchudzaniu'!C97=0),TRUE)","v":true},{"$f":"IF(A77,0,IF('Postępy w odchudzaniu'!B98=0,'Postępy w odchudzaniu'!B97+5,'Postępy w odchudzaniu'!B98))","v":"00:00:00"},{"$f":"'Postępy w odchudzaniu'!C98","v":0}]
[{"$f":"IF(('Postępy w odchudzaniu'!C99=0)*('Postępy w odchudzaniu'!C98=0),TRUE)","v":true},{"$f":"IF(A78,0,IF('Postępy w odchudzaniu'!B99=0,'Postępy w odchudzaniu'!B98+5,'Postępy w odchudzaniu'!B99))","v":"00:00:00"},{"$f":"'Postępy w odchudzaniu'!C99","v":0}]
[{"$f":"IF(('Postępy w odchudzaniu'!C100=0)*('Postępy w odchudzaniu'!C99=0),TRUE)","v":true},{"$f":"IF(A79,0,IF('Postępy w odchudzaniu'!B100=0,'Postępy w odchudzaniu'!B99+5,'Postępy w odchudzaniu'!B100))","v":"00:00:00"},{"$f":"'Postępy w odchudzaniu'!C100","v":0}]
[{"$f":"IF(('Postępy w odchudzaniu'!C101=0)*('Postępy w odchudzaniu'!C100=0),TRUE)","v":true},{"$f":"IF(A80,0,IF('Postępy w odchudzaniu'!B101=0,'Postępy w odchudzaniu'!B100+5,'Postępy w odchudzaniu'!B101))","v":"00:00:00"},{"$f":"'Postępy w odchudzaniu'!C101","v":0}]
[{"$f":"IF(('Postępy w odchudzaniu'!C102=0)*('Postępy w odchudzaniu'!C101=0),TRUE)","v":true},{"$f":"IF(A81,0,IF('Postępy w odchudzaniu'!B102=0,'Postępy w odchudzaniu'!B101+5,'Postępy w odchudzaniu'!B102))","v":"00:00:00"},{"$f":"'Postępy w odchudzaniu'!C102","v":0}]
[{"$f":"IF(('Postępy w odchudzaniu'!C103=0)*('Postępy w odchudzaniu'!C102=0),TRUE)","v":true},{"$f":"IF(A82,0,IF('Postępy w odchudzaniu'!B103=0,'Postępy w odchudzaniu'!B102+5,'Postępy w odchudzaniu'!B103))","v":"00:00:00"},{"$f":"'Postępy w odchudzaniu'!C103","v":0}]
[{"$f":"IF(('Postępy w odchudzaniu'!C104=0)*('Postępy w odchudzaniu'!C103=0),TRUE)","v":true},{"$f":"IF(A83,0,IF('Postępy w odchudzaniu'!B104=0,'Postępy w odchudzaniu'!B103+5,'Postępy w odchudzaniu'!B104))","v":"00:00:00"},{"$f":"'Postępy w odchudzaniu'!C104","v":0}]
[{"$f":"IF(('Postępy w odchudzaniu'!C105=0)*('Postępy w odchudzaniu'!C104=0),TRUE)","v":true},{"$f":"IF(A84,0,IF('Postępy w odchudzaniu'!B105=0,'Postępy w odchudzaniu'!B104+5,'Postępy w odchudzaniu'!B105))","v":"00:00:00"},{"$f":"'Postępy w odchudzaniu'!C105","v":0}]
[{"$f":"IF(('Postępy w odchudzaniu'!C106=0)*('Postępy w odchudzaniu'!C105=0),TRUE)","v":true},{"$f":"IF(A85,0,IF('Postępy w odchudzaniu'!B106=0,'Postępy w odchudzaniu'!B105+5,'Postępy w odchudzaniu'!B106))","v":"00:00:00"},{"$f":"'Postępy w odchudzaniu'!C106","v":0}]
[{"$f":"IF(('Postępy w odchudzaniu'!C107=0)*('Postępy w odchudzaniu'!C106=0),TRUE)","v":true},{"$f":"IF(A86,0,IF('Postępy w odchudzaniu'!B107=0,'Postępy w odchudzaniu'!B106+5,'Postępy w odchudzaniu'!B107))","v":"00:00:00"},{"$f":"'Postępy w odchudzaniu'!C107","v":0}]
[{"$f":"IF(('Postępy w odchudzaniu'!C108=0)*('Postępy w odchudzaniu'!C107=0),TRUE)","v":true},{"$f":"IF(A87,0,IF('Postępy w odchudzaniu'!B108=0,'Postępy w odchudzaniu'!B107+5,'Postępy w odchudzaniu'!B108))","v":"00:00:00"},{"$f":"'Postępy w odchudzaniu'!C108","v":0}]
[{"$f":"IF(('Postępy w odchudzaniu'!C109=0)*('Postępy w odchudzaniu'!C108=0),TRUE)","v":true},{"$f":"IF(A88,0,IF('Postępy w odchudzaniu'!B109=0,'Postępy w odchudzaniu'!B108+5,'Postępy w odchudzaniu'!B109))","v":"00:00:00"},{"$f":"'Postępy w odchudzaniu'!C109","v":0}]
[{"$f":"IF(('Postępy w odchudzaniu'!C110=0)*('Postępy w odchudzaniu'!C109=0),TRUE)","v":true},{"$f":"IF(A89,0,IF('Postępy w odchudzaniu'!B110=0,'Postępy w odchudzaniu'!B109+5,'Postępy w odchudzaniu'!B110))","v":"00:00:00"},{"$f":"'Postępy w odchudzaniu'!C110","v":0}]
[{"$f":"IF(('Postępy w odchudzaniu'!C111=0)*('Postępy w odchudzaniu'!C110=0),TRUE)","v":true},{"$f":"IF(A90,0,IF('Postępy w odchudzaniu'!B111=0,'Postępy w odchudzaniu'!B110+5,'Postępy w odchudzaniu'!B111))","v":"00:00:00"},{"$f":"'Postępy w odchudzaniu'!C111","v":0}]
[{"$f":"IF(('Postępy w odchudzaniu'!C112=0)*('Postępy w odchudzaniu'!C111=0),TRUE)","v":true},{"$f":"IF(A91,0,IF('Postępy w odchudzaniu'!B112=0,'Postępy w odchudzaniu'!B111+5,'Postępy w odchudzaniu'!B112))","v":"00:00:00"},{"$f":"'Postępy w odchudzaniu'!C112","v":0}]
[{"$f":"IF(('Postępy w odchudzaniu'!C113=0)*('Postępy w odchudzaniu'!C112=0),TRUE)","v":true},{"$f":"IF(A92,0,IF('Postępy w odchudzaniu'!B113=0,'Postępy w odchudzaniu'!B112+5,'Postępy w odchudzaniu'!B113))","v":"00:00:00"},{"$f":"'Postępy w odchudzaniu'!C113","v":0}]
[{"$f":"IF(('Postępy w odchudzaniu'!C114=0)*('Postępy w odchudzaniu'!C113=0),TRUE)","v":true},{"$f":"IF(A93,0,IF('Postępy w odchudzaniu'!B114=0,'Postępy w odchudzaniu'!B113+5,'Postępy w odchudzaniu'!B114))","v":"00:00:00"},{"$f":"'Postępy w odchudzaniu'!C114","v":0}]
[{"$f":"IF(('Postępy w odchudzaniu'!C115=0)*('Postępy w odchudzaniu'!C114=0),TRUE)","v":true},{"$f":"IF(A94,0,IF('Postępy w odchudzaniu'!B115=0,'Postępy w odchudzaniu'!B114+5,'Postępy w odchudzaniu'!B115))","v":"00:00:00"},{"$f":"'Postępy w odchudzaniu'!C115","v":0}]
[{"$f":"IF(('Postępy w odchudzaniu'!C116=0)*('Postępy w odchudzaniu'!C115=0),TRUE)","v":true},{"$f":"IF(A95,0,IF('Postępy w odchudzaniu'!B116=0,'Postępy w odchudzaniu'!B115+5,'Postępy w odchudzaniu'!B116))","v":"00:00:00"},{"$f":"'Postępy w odchudzaniu'!C116","v":0}]
[{"$f":"IF(('Postępy w odchudzaniu'!C117=0)*('Postępy w odchudzaniu'!C116=0),TRUE)","v":true},{"$f":"IF(A96,0,IF('Postępy w odchudzaniu'!B117=0,'Postępy w odchudzaniu'!B116+5,'Postępy w odchudzaniu'!B117))","v":"00:00:00"},{"$f":"'Postępy w odchudzaniu'!C117","v":0}]
[{"$f":"IF(('Postępy w odchudzaniu'!C118=0)*('Postępy w odchudzaniu'!C117=0),TRUE)","v":true},{"$f":"IF(A97,0,IF('Postępy w odchudzaniu'!B118=0,'Postępy w odchudzaniu'!B117+5,'Postępy w odchudzaniu'!B118))","v":"00:00:00"},{"$f":"'Postępy w odchudzaniu'!C118","v":0}]
[{"$f":"IF(('Postępy w odchudzaniu'!C119=0)*('Postępy w odchudzaniu'!C118=0),TRUE)","v":true},{"$f":"IF(A98,0,IF('Postępy w odchudzaniu'!B119=0,'Postępy w odchudzaniu'!B118+5,'Postępy w odchudzaniu'!B119))","v":"00:00:00"},{"$f":"'Postępy w odchudzaniu'!C119","v":0}]
[{"$f":"IF(('Postępy w odchudzaniu'!C120=0)*('Postępy w odchudzaniu'!C119=0),TRUE)","v":true},{"$f":"IF(A99,0,IF('Postępy w odchudzaniu'!B120=0,'Postępy w odchudzaniu'!B119+5,'Postępy w odchudzaniu'!B120))","v":"00:00:00"},{"$f":"'Postępy w odchudzaniu'!C120","v":0}]
[{"$f":"IF(('Postępy w odchudzaniu'!C121=0)*('Postępy w odchudzaniu'!C120=0),TRUE)","v":true},{"$f":"IF(A100,0,IF('Postępy w odchudzaniu'!B121=0,'Postępy w odchudzaniu'!B120+5,'Postępy w odchudzaniu'!B121))","v":"00:00:00"},{"$f":"'Postępy w odchudzaniu'!C121","v":0}]
[{"$f":"IF(('Postępy w odchudzaniu'!C122=0)*('Postępy w odchudzaniu'!C121=0),TRUE)","v":true},{"$f":"IF(A101,0,IF('Postępy w odchudzaniu'!B122=0,'Postępy w odchudzaniu'!B121+5,'Postępy w odchudzaniu'!B122))","v":"00:00:00"},{"$f":"'Postępy w odchudzaniu'!C122","v":0}]
[{"$f":"IF(('Postępy w odchudzaniu'!C123=0)*('Postępy w odchudzaniu'!C122=0),TRUE)","v":true},{"$f":"IF(A102,0,IF('Postępy w odchudzaniu'!B123=0,'Postępy w odchudzaniu'!B122+5,'Postępy w odchudzaniu'!B123))","v":"00:00:00"},{"$f":"'Postępy w odchudzaniu'!C123","v":0}]
[{"$f":"IF(('Postępy w odchudzaniu'!C124=0)*('Postępy w odchudzaniu'!C123=0),TRUE)","v":true},{"$f":"IF(A103,0,IF('Postępy w odchudzaniu'!B124=0,'Postępy w odchudzaniu'!B123+5,'Postępy w odchudzaniu'!B124))","v":"00:00:00"},{"$f":"'Postępy w odchudzaniu'!C124","v":0}]
[{"$f":"IF(('Postępy w odchudzaniu'!C125=0)*('Postępy w odchudzaniu'!C124=0),TRUE)","v":true},{"$f":"IF(A104,0,IF('Postępy w odchudzaniu'!B125=0,'Postępy w odchudzaniu'!B124+5,'Postępy w odchudzaniu'!B125))","v":"00:00:00"},{"$f":"'Postępy w odchudzaniu'!C125","v":0}]
[{"$f":"IF(('Postępy w odchudzaniu'!C126=0)*('Postępy w odchudzaniu'!C125=0),TRUE)","v":true},{"$f":"IF(A105,0,IF('Postępy w odchudzaniu'!B126=0,'Postępy w odchudzaniu'!B125+5,'Postępy w odchudzaniu'!B126))","v":"00:00:00"},{"$f":"'Postępy w odchudzaniu'!C126","v":0}]
[{"$f":"IF(('Postępy w odchudzaniu'!C127=0)*('Postępy w odchudzaniu'!C126=0),TRUE)","v":true},{"$f":"IF(A106,0,IF('Postępy w odchudzaniu'!B127=0,'Postępy w odchudzaniu'!B126+5,'Postępy w odchudzaniu'!B127))","v":"00:00:00"},{"$f":"'Postępy w odchudzaniu'!C127","v":0}]
[{"$f":"IF(('Postępy w odchudzaniu'!C128=0)*('Postępy w odchudzaniu'!C127=0),TRUE)","v":true},{"$f":"IF(A107,0,IF('Postępy w odchudzaniu'!B128=0,'Postępy w odchudzaniu'!B127+5,'Postępy w odchudzaniu'!B128))","v":"00:00:00"},{"$f":"'Postępy w odchudzaniu'!C128","v":0}]
[{"$f":"IF(('Postępy w odchudzaniu'!C129=0)*('Postępy w odchudzaniu'!C128=0),TRUE)","v":true},{"$f":"IF(A108,0,IF('Postępy w odchudzaniu'!B129=0,'Postępy w odchudzaniu'!B128+5,'Postępy w odchudzaniu'!B129))","v":"00:00:00"},{"$f":"'Postępy w odchudzaniu'!C129","v":0}]